[Event "*** SCC Grand Prix: Titled Tuesday Blitz"]
[Site "Chess.com"]
[Date "2020.07.14"]
[Round "9"]
[White "topotun"]
[Black "Siniauski"]
[Result "1-0"]
[WhiteElo "2710"]
[BlackElo "2488"]
[TimeControl "180+1"]
[EndTime "11:46:10 PDT"]
[Termination "topotun won by resignation"]

1. e4 {[%clk 0:03:00.9]} 1... e6 {[%clk 0:02:59.3]} 2. d4 {[%clk 0:02:59.5]}
2... d5 {[%clk 0:02:59.7]} 3. Nd2 {[%clk 0:03:00]} 3... c5 {[%clk 0:02:59.5]} 4.
exd5 {[%clk 0:03:00.1]} 4... Qxd5 {[%clk 0:03:00.4]} 5. Ngf3 {[%clk 0:03:00.4]}
5... cxd4 {[%clk 0:03:00]} 6. Bc4 {[%clk 0:03:00.6]} 6... Qd8 {[%clk 0:03:00.1]}
7. O-O {[%clk 0:03:00.8]} 7... Nc6 {[%clk 0:02:59.7]} 8. Nb3 {[%clk 0:03:00.6]}
8... a6 {[%clk 0:02:59.9]} 9. a4 {[%clk 0:03:00.4]} 9... e5 {[%clk 0:02:21.9]}
10. Re1 {[%clk 0:02:39]} 10... Bd6 {[%clk 0:02:20.4]} 11. Nbxd4 {[%clk
0:02:29.2]} 11... Nxd4 {[%clk 0:02:17.9]} 12. Qxd4 {[%clk 0:02:26.7]} 12... f6
{[%clk 0:01:18.6]} 13. Qd3 {[%clk 0:02:22.1]} 13... Ne7 {[%clk 0:01:15.6]} 14.
Qb3 {[%clk 0:02:03.9]} 14... Qc7 {[%clk 0:01:04.9]} 15. Be3 {[%clk 0:02:01.6]}
15... Bg4 {[%clk 0:00:59.9]} 16. Bb6 {[%clk 0:01:57]} 16... Qc6 {[%clk
0:00:48.5]} 17. Bf7+ {[%clk 0:01:25.7]} 17... Kf8 {[%clk 0:00:47.5]} 18. Rad1
{[%clk 0:01:26.6]} 18... Bxf3 {[%clk 0:00:41.7]} 19. gxf3 {[%clk 0:01:27.5]}
19... Bc7 {[%clk 0:00:06.4]} 20. Bxc7 {[%clk 0:00:54.8]} 20... Qxc7 {[%clk
0:00:07.3]} 21. Be6 {[%clk 0:00:55.2]} 21... Rd8 {[%clk 0:00:04.5]} 22. c3
{[%clk 0:00:54.3]} 22... g6 {[%clk 0:00:02.6]} 23. Rxd8+ {[%clk 0:00:53.6]}
23... Qxd8 {[%clk 0:00:03.5]} 24. Rd1 {[%clk 0:00:54.1]} 24... Qe8 {[%clk
0:00:04.1]} 25. Qxb7 {[%clk 0:00:52.7]} 25... Nc8 {[%clk 0:00:01.3]} 26. Bxc8
{[%clk 0:00:51.8]} 1-0

[Event "*** SCC Grand Prix: Titled Tuesday Blitz"]
[Site "Chess.com"]
[Date "2020.07.14"]
[Round "9"]
[White "DenisQ"]
[Black "bugsbunny444"]
[Result "1-0"]
[WhiteElo "2636"]
[BlackElo "2476"]
[TimeControl "180+1"]
[EndTime "11:46:12 PDT"]
[Termination "DenisQ won on time"]

1. Nf3 {[%clk 0:03:00.9]} 1... d5 {[%clk 0:02:30.6]} 2. c4 {[%clk 0:02:58.8]}
2... d4 {[%clk 0:02:28.7]} 3. g3 {[%clk 0:02:57.4]} 3... Nc6 {[%clk 0:02:28.2]}
4. Bg2 {[%clk 0:02:56.9]} 4... e5 {[%clk 0:02:28.8]} 5. O-O {[%clk 0:02:56.9]}
5... e4 {[%clk 0:02:28.3]} 6. Ne1 {[%clk 0:02:56.4]} 6... h5 {[%clk 0:02:28.9]}
7. Bxe4 {[%clk 0:02:55.5]} 7... h4 {[%clk 0:02:29.3]} 8. d3 {[%clk 0:02:55.1]}
8... Nf6 {[%clk 0:02:22.8]} 9. Bg5 {[%clk 0:02:51.6]} 9... Bh3 {[%clk
0:02:15.1]} 10. Ng2 {[%clk 0:02:50]} 10... Qd7 {[%clk 0:02:08.1]} 11. Bxf6
{[%clk 0:02:48.2]} 11... gxf6 {[%clk 0:02:07.7]} 12. Nxh4 {[%clk 0:02:37.4]}
12... Rxh4 {[%clk 0:01:19.2]} 13. gxh4 {[%clk 0:02:34.5]} 13... Qg4+ {[%clk
0:01:19.6]} 14. Kh1 {[%clk 0:02:32.7]} 14... Bd6 {[%clk 0:00:44.5]} 15. Nd2
{[%clk 0:02:17.1]} 15... Ke7 {[%clk 0:00:17.8]} 16. Rg1 {[%clk 0:02:10.9]} 16...
Qxh4 {[%clk 0:00:18.2]} 17. Nf3 {[%clk 0:02:10.6]} 17... Qxf2 {[%clk 0:00:14.8]}
18. Qe1 {[%clk 0:02:07]} 18... Qe3 {[%clk 0:00:07.7]} 19. Qh4 {[%clk 0:02:06.4]}
19... Bd7 {[%clk 0:00:05.4]} 20. Rg2 {[%clk 0:01:55.6]} 20... Re8 {[%clk
0:00:04.5]} 21. Rf1 {[%clk 0:01:46.2]} 21... Kd8 {[%clk 0:00:03.9]} 22. Qxf6+
{[%clk 0:01:45.3]} 22... Kc8 {[%clk 0:00:04.4]} 23. Rfg1 {[%clk 0:01:40.9]}
23... a6 {[%clk 0:00:02.7]} 24. Qxf7 {[%clk 0:01:29.2]} 24... Rd8 {[%clk
0:00:01.1]} 25. Bf5 {[%clk 0:01:24.2]} 25... Ne5 {[%clk 0:00:01.1]} 26. Nxe5
{[%clk 0:01:19.7]} 26... Qxe5 {[%clk 0:00:02]} 27. Bxd7+ {[%clk 0:01:17.5]}
27... Kb8 {[%clk 0:00:01.8]} 28. Qe6 {[%clk 0:01:03.2]} 28... Qf4 {[%clk
0:00:01.3]} 29. Qh3 {[%clk 0:00:57.4]} 1-0

[Event "*** SCC Grand Prix: Titled Tuesday Blitz"]
[Site "Chess.com"]
[Date "2020.07.14"]
[Round "9"]
[White "binbin239"]
[Black "Forantes"]
[Result "1-0"]
[WhiteElo "2527"]
[BlackElo "2367"]
[TimeControl "180+1"]
[EndTime "11:46:18 PDT"]
[Termination "binbin239 won by checkmate"]

1. d4 {[%clk 0:02:55.4]} 1... Nf6 {[%clk 0:02:59.8]} 2. c4 {[%clk 0:02:54.8]}
2... g6 {[%clk 0:02:58.9]} 3. Nf3 {[%clk 0:02:54.7]} 3... Bg7 {[%clk 0:02:58.7]}
4. g3 {[%clk 0:02:54.7]} 4... O-O {[%clk 0:02:58.6]} 5. Bg2 {[%clk 0:02:54.7]}
5... d5 {[%clk 0:02:59.2]} 6. cxd5 {[%clk 0:02:53.3]} 6... Nxd5 {[%clk
0:03:00.1]} 7. O-O {[%clk 0:02:53.4]} 7... Nc6 {[%clk 0:03:00]} 8. Nc3 {[%clk
0:02:51.7]} 8... Nb6 {[%clk 0:03:00.1]} 9. d5 {[%clk 0:02:51.9]} 9... Na5 {[%clk
0:02:53.9]} 10. e4 {[%clk 0:02:52]} 10... c6 {[%clk 0:02:50.9]} 11. Bf4 {[%clk
0:02:39.4]} 11... cxd5 {[%clk 0:02:43]} 12. exd5 {[%clk 0:02:39]} 12... Nac4
{[%clk 0:02:42.1]} 13. b3 {[%clk 0:02:22.5]} 13... Bxc3 {[%clk 0:01:37.4]} 14.
bxc4 {[%clk 0:02:20.9]} 14... Bxa1 {[%clk 0:01:37.3]} 15. Qxa1 {[%clk
0:02:20.6]} 15... Nxc4 {[%clk 0:01:37.8]} 16. Bh6 {[%clk 0:02:19.4]} 16... f6
{[%clk 0:01:38.1]} 17. Bxf8 {[%clk 0:02:18.3]} 17... Kxf8 {[%clk 0:01:39]} 18.
Ng5 {[%clk 0:02:09.5]} 18... Kg8 {[%clk 0:01:25.5]} 19. Ne6 {[%clk 0:02:05.6]}
19... Bxe6 {[%clk 0:00:56.3]} 20. dxe6 {[%clk 0:02:04.7]} 20... Rb8 {[%clk
0:00:56.9]} 21. Rd1 {[%clk 0:02:01.2]} 21... Nd6 {[%clk 0:00:56.8]} 22. Qd4
{[%clk 0:01:58.9]} 22... a5 {[%clk 0:00:39.7]} 23. h4 {[%clk 0:01:52.5]} 23...
b5 {[%clk 0:00:34.5]} 24. h5 {[%clk 0:01:52.3]} 24... Qb6 {[%clk 0:00:25.2]} 25.
Qg4 {[%clk 0:01:48.6]} 25... Kg7 {[%clk 0:00:12.5]} 26. Qf4 {[%clk 0:01:43.3]}
26... b4 {[%clk 0:00:10.8]} 27. Bf3 {[%clk 0:01:37.2]} 27... a4 {[%clk
0:00:08.8]} 28. Kg2 {[%clk 0:01:36.1]} 28... g5 {[%clk 0:00:07.6]} 29. h6+
{[%clk 0:01:32.5]} 29... Kg8 {[%clk 0:00:03.5]} 30. Qd2 {[%clk 0:01:25.4]} 30...
b3 {[%clk 0:00:03.3]} 31. axb3 {[%clk 0:01:25.4]} 31... axb3 {[%clk 0:00:03.5]}
32. Rb1 {[%clk 0:01:25.4]} 32... b2 {[%clk 0:00:03.4]} 33. Qc2 {[%clk 0:01:23]}
33... Qb3 {[%clk 0:00:03.6]} 34. Qc7 {[%clk 0:01:21.6]} 34... Qb6 {[%clk
0:00:02.6]} 35. Qxe7 {[%clk 0:01:20.8]} 35... Nf5 {[%clk 0:00:03.1]} 36. Qf7+
{[%clk 0:01:20]} 36... Kh8 {[%clk 0:00:03.5]} 37. e7 {[%clk 0:01:19.9]} 37...
Qd4 {[%clk 0:00:02]} 38. e8=Q+ {[%clk 0:01:19]} 38... Rxe8 {[%clk 0:00:01.9]}
39. Qxe8# {[%clk 0:01:19.1]} 1-0

[Event "*** SCC Grand Prix: Titled Tuesday Blitz"]
[Site "Chess.com"]
[Date "2020.07.14"]
[Round "9"]
[White "PIwan"]
[Black "Kaua18"]
[Result "1-0"]
[WhiteElo "2499"]
[BlackElo "2276"]
[TimeControl "180+1"]
[EndTime "11:46:18 PDT"]
[Termination "PIwan won by resignation"]

1. c4 {[%clk 0:03:00.9]} 1... c5 {[%clk 0:02:59.8]} 2. Nf3 {[%clk 0:03:00.1]}
2... Nc6 {[%clk 0:03:00.2]} 3. e3 {[%clk 0:03:00.6]} 3... e5 {[%clk 0:02:59.7]}
4. Nc3 {[%clk 0:03:00.7]} 4... Nf6 {[%clk 0:02:59.4]} 5. d4 {[%clk 0:03:01.1]}
5... cxd4 {[%clk 0:02:58.3]} 6. exd4 {[%clk 0:03:02]} 6... e4 {[%clk 0:02:58.6]}
7. Ne5 {[%clk 0:03:01.2]} 7... Bb4 {[%clk 0:02:53.2]} 8. Be2 {[%clk 0:02:58.7]}
8... Qa5 {[%clk 0:02:51.7]} 9. Nxc6 {[%clk 0:02:40]} 9... dxc6 {[%clk
0:02:52.6]} 10. Qb3 {[%clk 0:02:31.6]} 10... O-O {[%clk 0:02:46.2]} 11. O-O
{[%clk 0:02:30.6]} 11... Re8 {[%clk 0:02:44.2]} 12. Be3 {[%clk 0:02:19.6]} 12...
Ng4 {[%clk 0:02:36]} 13. a3 {[%clk 0:02:14.2]} 13... Bxc3 {[%clk 0:02:30.5]} 14.
bxc3 {[%clk 0:02:15.1]} 14... Nxe3 {[%clk 0:02:13]} 15. fxe3 {[%clk 0:02:16]}
15... Qg5 {[%clk 0:02:12.6]} 16. Rf4 {[%clk 0:02:10.7]} 16... b6 {[%clk
0:01:46.6]} 17. Raf1 {[%clk 0:02:06.6]} 17... c5 {[%clk 0:01:43.1]} 18. Qd1
{[%clk 0:01:27.2]} 18... Bh3 {[%clk 0:01:31.6]} 19. R1f2 {[%clk 0:01:24]} 19...
Re7 {[%clk 0:01:24.1]} 20. dxc5 {[%clk 0:00:59.4]} 20... bxc5 {[%clk 0:01:03.3]}
21. Qd5 {[%clk 0:00:59]} 21... Qxd5 {[%clk 0:00:49]} 22. cxd5 {[%clk 0:00:59.9]}
22... Bc8 {[%clk 0:00:43]} 23. d6 {[%clk 0:00:52]} 23... Rd7 {[%clk 0:00:40.2]}
24. Bc4 {[%clk 0:00:48.7]} 24... Bb7 {[%clk 0:00:35.7]} 25. Rxf7 {[%clk
0:00:48]} 25... Rxf7 {[%clk 0:00:30.6]} 26. Rxf7 {[%clk 0:00:48.9]} 26... Bc6
{[%clk 0:00:09.3]} 27. Rc7+ {[%clk 0:00:42.1]} 1-0

[Event "*** SCC Grand Prix: Titled Tuesday Blitz"]
[Site "Chess.com"]
[Date "2020.07.14"]
[Round "9"]
[White "Iskusnyh"]
[Black "yuliagok"]
[Result "1-0"]
[WhiteElo "2479"]
[BlackElo "2085"]
[TimeControl "180+1"]
[EndTime "11:46:19 PDT"]
[Termination "Iskusnyh won by resignation"]

1. d4 {[%clk 0:03:00.9]} 1... Nf6 {[%clk 0:02:58.5]} 2. c4 {[%clk 0:03:00]} 2...
e6 {[%clk 0:02:58.1]} 3. g3 {[%clk 0:03:00.1]} 3... Bb4+ {[%clk 0:02:54]} 4. Nd2
{[%clk 0:02:58.5]} 4... c6 {[%clk 0:02:49.8]} 5. Bg2 {[%clk 0:02:56.3]} 5... O-O
{[%clk 0:02:47.7]} 6. Nf3 {[%clk 0:02:56]} 6... d5 {[%clk 0:02:45.4]} 7. O-O
{[%clk 0:02:56]} 7... b6 {[%clk 0:02:42.5]} 8. Qc2 {[%clk 0:02:55.9]} 8... Bb7
{[%clk 0:02:40]} 9. e4 {[%clk 0:02:55.6]} 9... dxe4 {[%clk 0:02:28.9]} 10. Nxe4
{[%clk 0:02:54.9]} 10... Nxe4 {[%clk 0:02:27.1]} 11. Qxe4 {[%clk 0:02:54.4]}
11... Nd7 {[%clk 0:02:19.3]} 12. Rd1 {[%clk 0:02:33.5]} 12... Nf6 {[%clk
0:02:16.4]} 13. Qc2 {[%clk 0:02:33.2]} 13... Qc7 {[%clk 0:02:05.9]} 14. Bf4
{[%clk 0:02:25.7]} 14... Bd6 {[%clk 0:02:04.4]} 15. Be5 {[%clk 0:02:25.6]} 15...
Bxe5 {[%clk 0:01:32.6]} 16. dxe5 {[%clk 0:02:24.3]} 16... Nd7 {[%clk 0:01:29.4]}
17. Ng5 {[%clk 0:02:20.3]} 17... g6 {[%clk 0:01:28.2]} 18. Ne4 {[%clk
0:02:05.3]} 18... Nxe5 {[%clk 0:01:25.7]} 19. f4 {[%clk 0:02:04.3]} 19... Ng4
{[%clk 0:01:22.5]} 20. Qe2 {[%clk 0:01:42.8]} 20... f5 {[%clk 0:01:20.7]} 21.
Nd6 {[%clk 0:01:40.1]} 21... Rfe8 {[%clk 0:01:18.3]} 22. Nxe8 {[%clk 0:01:36.5]}
22... Rxe8 {[%clk 0:01:16.5]} 23. h3 {[%clk 0:01:35]} 23... Nf6 {[%clk
0:01:15.3]} 24. Qe5 {[%clk 0:01:31.5]} 24... Qf7 {[%clk 0:01:10.9]} 25. Rd6
{[%clk 0:01:23.7]} 25... Nd7 {[%clk 0:01:07.8]} 26. Qd4 {[%clk 0:01:12.4]} 26...
Nf6 {[%clk 0:01:00.1]} 27. Qe5 {[%clk 0:01:00.8]} 27... Nh5 {[%clk 0:00:51.6]}
28. Rad1 {[%clk 0:00:50.9]} 28... Nf6 {[%clk 0:00:42.1]} 29. Bxc6 {[%clk
0:00:43.9]} 29... Bxc6 {[%clk 0:00:40.8]} 30. Rxc6 {[%clk 0:00:44]} 30... Ne4
{[%clk 0:00:39.2]} 31. Rc7 {[%clk 0:00:43.4]} 31... Qf8 {[%clk 0:00:38.4]} 32.
Rdd7 {[%clk 0:00:41.4]} 1-0

[Event "*** SCC Grand Prix: Titled Tuesday Blitz"]
[Site "Chess.com"]
[Date "2020.07.14"]
[Round "9"]
[White "gagtemp"]
[Black "Klavdia_Nik"]
[Result "1-0"]
[WhiteElo "1957"]
[BlackElo "2052"]
[TimeControl "180+1"]
[EndTime "11:46:25 PDT"]
[Termination "gagtemp won on time"]

1. e4 {[%clk 0:03:00.9]} 1... c5 {[%clk 0:02:53]} 2. Nf3 {[%clk 0:03:01.1]} 2...
d6 {[%clk 0:02:51.4]} 3. d4 {[%clk 0:03:01.4]} 3... cxd4 {[%clk 0:02:50.9]} 4.
Nxd4 {[%clk 0:03:01.5]} 4... Nf6 {[%clk 0:02:51]} 5. Nc3 {[%clk 0:03:01.5]} 5...
a6 {[%clk 0:02:50.1]} 6. Be3 {[%clk 0:03:01.3]} 6... e5 {[%clk 0:02:48.9]} 7.
Nb3 {[%clk 0:03:01.4]} 7... Be7 {[%clk 0:02:47.7]} 8. f3 {[%clk 0:03:01.6]} 8...
Be6 {[%clk 0:02:40.9]} 9. Qd2 {[%clk 0:03:01.7]} 9... Nc6 {[%clk 0:02:32]} 10.
Nd5 {[%clk 0:02:59]} 10... Bxd5 {[%clk 0:02:26.2]} 11. exd5 {[%clk 0:02:58.6]}
11... Nb8 {[%clk 0:02:26.2]} 12. Na5 {[%clk 0:02:52.5]} 12... Qc7 {[%clk
0:02:09.2]} 13. Be2 {[%clk 0:02:44.4]} 13... Nbd7 {[%clk 0:02:07.1]} 14. O-O
{[%clk 0:02:39.4]} 14... O-O {[%clk 0:02:01.3]} 15. c4 {[%clk 0:02:38.3]} 15...
Bd8 {[%clk 0:01:47.3]} 16. b4 {[%clk 0:02:36.5]} 16... Qc8 {[%clk 0:01:28.9]}
17. Nb3 {[%clk 0:02:32]} 17... b6 {[%clk 0:01:20.5]} 18. a4 {[%clk 0:02:25.1]}
18... Qb7 {[%clk 0:01:12.7]} 19. Rfd1 {[%clk 0:02:15.9]} 19... Rc8 {[%clk
0:01:03.5]} 20. Rac1 {[%clk 0:02:14.7]} 20... Ne8 {[%clk 0:00:55.6]} 21. Qd3
{[%clk 0:01:59]} 21... f5 {[%clk 0:00:50.6]} 22. c5 {[%clk 0:01:53.3]} 22...
bxc5 {[%clk 0:00:43.9]} 23. bxc5 {[%clk 0:01:46.8]} 23... dxc5 {[%clk
0:00:28.1]} 24. Nxc5 {[%clk 0:01:46.5]} 24... Nxc5 {[%clk 0:00:27.2]} 25. Bxc5
{[%clk 0:01:45.7]} 25... Rf7 {[%clk 0:00:23.7]} 26. Qxa6 {[%clk 0:01:43.9]}
26... Ra8 {[%clk 0:00:15.2]} 27. Qxb7 {[%clk 0:01:41.7]} 27... Rxb7 {[%clk
0:00:15.7]} 28. Bb5 {[%clk 0:01:40.8]} 28... Bb6 {[%clk 0:00:15.4]} 29. d6
{[%clk 0:01:37.1]} 29... Bxc5+ {[%clk 0:00:15.1]} 30. Rxc5 {[%clk 0:01:36.4]}
30... Nxd6 {[%clk 0:00:11.4]} 31. Rxd6 {[%clk 0:01:34.7]} 31... h6 {[%clk
0:00:11.3]} 32. Rxe5 {[%clk 0:01:32.9]} 32... Rc7 {[%clk 0:00:10.6]} 33. Kf2
{[%clk 0:01:31.9]} 33... Rc2+ {[%clk 0:00:10.7]} 34. Kg3 {[%clk 0:01:31.7]}
34... Rf8 {[%clk 0:00:09.8]} 35. Rd4 {[%clk 0:01:27.6]} 35... g5 {[%clk
0:00:09.1]} 36. h3 {[%clk 0:01:26.7]} 36... h5 {[%clk 0:00:08.6]} 37. Re6 {[%clk
0:01:23.2]} 37... h4+ {[%clk 0:00:07.9]} 38. Kh2 {[%clk 0:01:22.8]} 38... Kf7
{[%clk 0:00:06.6]} 39. Red6 {[%clk 0:01:21.7]} 39... Kg7 {[%clk 0:00:05.6]} 40.
Rd7+ {[%clk 0:01:21.2]} 40... Kh6 {[%clk 0:00:05.2]} 41. R4d6+ {[%clk
0:01:20.1]} 1-0

[Event "*** SCC Grand Prix: Titled Tuesday Blitz"]
[Site "Chess.com"]
[Date "2020.07.14"]
[Round "9"]
[White "whodee11"]
[Black "DaggiGretarsson"]
[Result "1-0"]
[WhiteElo "2418"]
[BlackElo "2563"]
[TimeControl "180+1"]
[EndTime "11:46:27 PDT"]
[Termination "whodee11 won by resignation"]

1. e4 {[%clk 0:03:00.9]} 1... g6 {[%clk 0:02:59]} 2. Bc4 {[%clk 0:02:59.8]} 2...
Bg7 {[%clk 0:02:58.7]} 3. Nc3 {[%clk 0:03:00.3]} 3... c5 {[%clk 0:02:57.9]} 4.
f4 {[%clk 0:02:59]} 4... Nc6 {[%clk 0:02:57.7]} 5. Nf3 {[%clk 0:02:58.3]} 5...
e6 {[%clk 0:02:57.3]} 6. d3 {[%clk 0:02:54.1]} 6... Nge7 {[%clk 0:02:56.5]} 7.
O-O {[%clk 0:02:55]} 7... d6 {[%clk 0:02:52.8]} 8. a3 {[%clk 0:02:52.3]} 8... a6
{[%clk 0:02:51.8]} 9. Ba2 {[%clk 0:02:52]} 9... b5 {[%clk 0:02:51.3]} 10. Qe1
{[%clk 0:02:51.8]} 10... Nd4 {[%clk 0:02:49.2]} 11. Nxd4 {[%clk 0:02:51.6]}
11... cxd4 {[%clk 0:02:48.9]} 12. Ne2 {[%clk 0:02:52.5]} 12... O-O {[%clk
0:02:42.7]} 13. Bd2 {[%clk 0:02:52.1]} 13... a5 {[%clk 0:02:35.4]} 14. Rc1
{[%clk 0:02:44.9]} 14... Bb7 {[%clk 0:02:26.7]} 15. Ng3 {[%clk 0:02:40.5]} 15...
Re8 {[%clk 0:02:07.1]} 16. Qf2 {[%clk 0:02:38.7]} 16... Qd7 {[%clk 0:02:01.3]}
17. f5 {[%clk 0:02:36]} 17... Nc6 {[%clk 0:02:00.8]} 18. f6 {[%clk 0:02:26.3]}
18... Bf8 {[%clk 0:01:57.2]} 19. Qf4 {[%clk 0:02:25.3]} 19... Rec8 {[%clk
0:01:26.5]} 20. Qh4 {[%clk 0:02:22.4]} 20... Qd8 {[%clk 0:01:23.5]} 21. Rf4
{[%clk 0:01:46]} 21... Rc7 {[%clk 0:01:14]} 22. Rcf1 {[%clk 0:01:40.2]} 22...
Bc8 {[%clk 0:01:12.5]} 23. Rg4 {[%clk 0:01:29.4]} 23... Kh8 {[%clk 0:01:08.1]}
24. Nh5 {[%clk 0:01:15.2]} 24... e5 {[%clk 0:01:01.9]} 25. Rg3 {[%clk
0:01:07.9]} 25... Be6 {[%clk 0:01:01.1]} 26. Bxe6 {[%clk 0:00:56.1]} 26... fxe6
{[%clk 0:01:00.8]} 27. Bg5 {[%clk 0:00:57]} 27... Rf7 {[%clk 0:00:59.4]} 28. Ng7
{[%clk 0:00:49.7]} 28... Kg8 {[%clk 0:00:42.2]} 29. Rh3 {[%clk 0:00:47]} 29...
h5 {[%clk 0:00:40.4]} 30. Nxh5 {[%clk 0:00:45.7]} 30... Bh6 {[%clk 0:00:19.1]}
31. Ng3 {[%clk 0:00:38.7]} 1-0

[Event "*** SCC Grand Prix: Titled Tuesday Blitz"]
[Site "Chess.com"]
[Date "2020.07.14"]
[Round "9"]
[White "barriochess"]
[Black "Larina_Marija"]
[Result "1-0"]
[WhiteElo "2272"]
[BlackElo "2099"]
[TimeControl "180+1"]
[EndTime "11:46:27 PDT"]
[Termination "barriochess won by resignation"]

1. d4 {[%clk 0:03:00.9]} 1... f5 {[%clk 0:02:59.7]} 2. e4 {[%clk 0:02:59.1]}
2... fxe4 {[%clk 0:02:59.5]} 3. Nc3 {[%clk 0:02:59.6]} 3... Nf6 {[%clk
0:02:59.9]} 4. Bg5 {[%clk 0:02:59.4]} 4... Nc6 {[%clk 0:02:55.2]} 5. d5 {[%clk
0:02:59.1]} 5... Ne5 {[%clk 0:02:53.6]} 6. Qe2 {[%clk 0:02:59.5]} 6... Nf7
{[%clk 0:02:53.3]} 7. f4 {[%clk 0:02:59.2]} 7... c6 {[%clk 0:02:47.7]} 8. O-O-O
{[%clk 0:02:55]} 8... Qa5 {[%clk 0:02:37.8]} 9. Bxf6 {[%clk 0:02:51.2]} 9...
gxf6 {[%clk 0:02:36.7]} 10. Qxe4 {[%clk 0:02:48.2]} 10... Bh6 {[%clk 0:02:30]}
11. Kb1 {[%clk 0:02:45.9]} 11... Nd6 {[%clk 0:02:07.1]} 12. Qf3 {[%clk
0:02:43.7]} 12... f5 {[%clk 0:02:02.2]} 13. Qh5+ {[%clk 0:02:39.2]} 13... Nf7
{[%clk 0:02:00.7]} 14. Qxf5 {[%clk 0:02:38.9]} 14... d6 {[%clk 0:02:00.5]} 15.
Qd3 {[%clk 0:02:36.8]} 15... Bg7 {[%clk 0:01:56.9]} 16. Nge2 {[%clk 0:02:30.4]}
16... O-O {[%clk 0:01:54.7]} 17. g3 {[%clk 0:02:29.5]} 17... Nh6 {[%clk
0:01:49.8]} 18. Bg2 {[%clk 0:02:29]} 18... Ng4 {[%clk 0:01:43.3]} 19. Rdf1
{[%clk 0:02:27.5]} 19... Bf5 {[%clk 0:01:40.3]} 20. Be4 {[%clk 0:02:27.1]} 20...
Bxe4 {[%clk 0:01:39.7]} 21. Qxe4 {[%clk 0:02:27.1]} 21... Rae8 {[%clk
0:01:31.6]} 22. Qe6+ {[%clk 0:02:26]} 22... Kh8 {[%clk 0:01:30]} 23. Qxg4 {[%clk
0:02:25.7]} 23... cxd5 {[%clk 0:01:30.2]} 24. Rd1 {[%clk 0:02:18.2]} 24... e6
{[%clk 0:01:27.3]} 25. Rhe1 {[%clk 0:02:13.8]} 25... b5 {[%clk 0:01:26.8]} 26.
Rd3 {[%clk 0:02:06.5]} 26... b4 {[%clk 0:01:26.4]} 27. Nd1 {[%clk 0:02:04.4]}
27... b3 {[%clk 0:01:24.7]} 28. Nec3 {[%clk 0:02:00.2]} 28... bxa2+ {[%clk
0:01:20.7]} 29. Ka1 {[%clk 0:01:59.9]} 29... d4 {[%clk 0:01:17.1]} 30. Rxe6
{[%clk 0:01:57.4]} 30... dxc3 {[%clk 0:01:12]} 31. Nxc3 {[%clk 0:01:57.3]} 31...
Qb4 {[%clk 0:00:35]} 32. Qe2 {[%clk 0:01:47.5]} 32... Rb8 {[%clk 0:00:34]} 33.
Nd1 {[%clk 0:01:31.5]} 33... Bxb2+ {[%clk 0:00:31.4]} 34. Kxa2 {[%clk
0:01:31.4]} 34... Qc4+ {[%clk 0:00:28.6]} 35. Rb3 {[%clk 0:01:30.1]} 35... Qd4
{[%clk 0:00:18.5]} 36. Nxb2 {[%clk 0:01:27.2]} 36... Rb6 {[%clk 0:00:17]} 37.
Qd3 {[%clk 0:01:14.6]} 37... Qc5 {[%clk 0:00:14.8]} 38. Qc3+ {[%clk 0:01:13.8]}
38... Qxc3 {[%clk 0:00:14.9]} 39. Rxc3 {[%clk 0:01:14.5]} 39... Rfb8 {[%clk
0:00:14.9]} 40. Rb3 {[%clk 0:01:14.8]} 40... Ra6+ {[%clk 0:00:15]} 41. Kb1
{[%clk 0:01:15.2]} 41... Rab6 {[%clk 0:00:15]} 42. Rxb6 {[%clk 0:01:14.7]} 42...
Rxb6 {[%clk 0:00:15.9]} 43. Re7 {[%clk 0:01:13.6]} 43... a5 {[%clk 0:00:15.1]}
44. c3 {[%clk 0:01:13.8]} 1-0

[Event "*** SCC Grand Prix: Titled Tuesday Blitz"]
[Site "Chess.com"]
[Date "2020.07.14"]
[Round "9"]
[White "Sam_ChessMood"]
[Black "Legendinunknown"]
[Result "1-0"]
[WhiteElo "2816"]
[BlackElo "2608"]
[TimeControl "180+1"]
[EndTime "11:46:28 PDT"]
[Termination "Sam_ChessMood won by resignation"]

1. e4 {[%clk 0:03:00.9]} 1... c5 {[%clk 0:02:58.3]} 2. Nc3 {[%clk 0:03:01.1]}
2... Nc6 {[%clk 0:02:57.2]} 3. Nf3 {[%clk 0:03:00.7]} 3... d6 {[%clk 0:02:56.5]}
4. d4 {[%clk 0:03:00.2]} 4... cxd4 {[%clk 0:02:56.4]} 5. Nxd4 {[%clk 0:03:01.1]}
5... Nf6 {[%clk 0:02:54.8]} 6. f3 {[%clk 0:02:59.3]} 6... Nxd4 {[%clk
0:02:47.9]} 7. Qxd4 {[%clk 0:02:58.7]} 7... g6 {[%clk 0:02:48.5]} 8. Be3 {[%clk
0:01:41.7]} 8... Bg7 {[%clk 0:02:47.1]} 9. O-O-O {[%clk 0:01:36]} 9... O-O
{[%clk 0:02:46]} 10. Qd2 {[%clk 0:01:36]} 10... Be6 {[%clk 0:02:45.1]} 11. Kb1
{[%clk 0:01:31.8]} 11... a6 {[%clk 0:02:30.2]} 12. h4 {[%clk 0:01:24.3]} 12...
b5 {[%clk 0:02:29.1]} 13. Bd4 {[%clk 0:01:16.1]} 13... b4 {[%clk 0:02:26.7]} 14.
Na4 {[%clk 0:01:15.1]} 14... d5 {[%clk 0:01:52]} 15. e5 {[%clk 0:00:43.3]} 15...
Nd7 {[%clk 0:01:50.1]} 16. f4 {[%clk 0:00:43.5]} 16... Bf5 {[%clk 0:01:46.6]}
17. h5 {[%clk 0:00:40.1]} 17... e6 {[%clk 0:01:43.7]} 18. Bd3 {[%clk 0:00:38.2]}
18... f6 {[%clk 0:01:06.3]} 19. hxg6 {[%clk 0:00:36]} 19... hxg6 {[%clk
0:01:05.4]} 20. g4 {[%clk 0:00:24.5]} 20... Bxd3 {[%clk 0:00:25.1]} 21. cxd3
{[%clk 0:00:24.8]} 21... fxe5 {[%clk 0:00:24.2]} 22. fxe5 {[%clk 0:00:25.2]}
22... Qe7 {[%clk 0:00:21.2]} 23. Qh2 {[%clk 0:00:24.1]} 23... Kf7 {[%clk
0:00:20.1]} 24. Qh7 {[%clk 0:00:20.7]} 24... Rg8 {[%clk 0:00:19.2]} 25. Rdf1+
{[%clk 0:00:18.6]} 25... Ke8 {[%clk 0:00:19.2]} 26. Qxg8+ {[%clk 0:00:18.8]} 1-0